Cogmind - Beta 14 @@@ ROGUE MODE // 2025.03.17 @ 18:13:02 Player: shockman27 Result: Destroyed by L-31 Rogue with Katana Performance ------------- Evolutions (2) 1000 Regions Visited (4) 800 Robots Destroyed (19) 95 Value Destroyed (492) 492 Prototype IDs (0) 0 Alien Tech Used (0) 0 Bonus (0) 0 TOTAL SCORE: 2387 Bonus ------- None Cogmind --------- Core Integrity 0/550 Matter 300/300 Energy 100/100 System Corruption 0% Temperature Cool (0) Movement Core (50) Location -8/Materials Parts ------- > --- POWER (2) -------- (None) > --- PROPULSION (3) --- (None) > --- UTILITY (3) ------ (None) > --- WEAPON (3) ------- (None) > --- INVENTORY (5) ---- Heat Sink Huge Storage Unit Shock Rifle Medium Laser Rocket Launcher Peak State ------------ > --- POWER ------------ Micro Nuclear Core > --- PROPULSION ------- Aluminum Leg Aluminum Leg > --- UTILITY ---------- Small Storage Unit Sensor Array Improved Field Recycling Unit > --- WEAPON ----------- Medium Laser Beamcaster Light Assault Rifle > --- INVENTORY -------- Light Ion Engine Light Ion Engine Heat Sink Huge Storage Unit Medium Matter Pod Utility Shielding Shock Rifle Rocket Launcher [Rating: 20] Favorites ----------- Power Micro Nuclear Core Engine Light Ion Engine Power Core Micro Nuclear Core Propulsion Aluminum Leg Leg Aluminum Leg Utility Small Storage Unit Device Sensor Array Storage Small Storage Unit Protection Utility Shielding Weapon Light Assault Rifle Energy Gun Medium Laser Ballistic Gun Light Assault Rifle Launcher Grenade Launcher Impact Weapon Heavy Hammer Build | -11 -10 -9 -9 -8 ------- Run | Yrd Mat Mat Min Mat Slots Evolved 4 | . . 2 . 2 Power 1 | . . . . 1 Propulsion 1 | . . . . 1 Utility 1 | . . 1 . . Weapon 1 | . . 1 . . Parts Attached 30 | 8 5 7 8 2 Power 6 | 3 1 1 1 . Engine 5 | 3 1 1 . . Core 1 | . . . 1 . Reactor . | . . . . . Propulsion 6 | 2 . 2 2 . Treads . | . . . . . Leg 6 | 2 . 2 2 . Wheel . | . . . . . Hover . | . . . . . Flight . | . . . . . Utility 8 | 1 2 1 3 1 Device 5 | . 1 1 3 . Storage 1 | 1 . . . . Processor . | . . . . . Hackware . | . . . . . Protection 2 | . 1 . . 1 Artifact . | . . . . . Weapon 10 | 2 2 3 2 1 Energy Gun 4 | . 2 1 1 . Energy Cannon . | . . . . . Ballistic Gun 4 | 2 . 1 1 . Ballistic Cannon . | . . . . . Launcher 1 | . . 1 . . Special Weapon . | . . . . . Impact Weapon 1 | . . . . 1 Slashing Weapon . | . . . . . Piercing Weapon . | . . . . . Special Melee Weapon . | . . . . . Unidentified Prototypes . | . . . . . Parts Lost 10 | . . 2 1 7 Power 1 | . . . . 1 Propulsion 3 | . . 1 . 2 Utility 3 | . . . . 3 Weapon 3 | . . 1 1 1 Highest Loss Streak 7 | . . 2 1 7 To Critical Strikes . | . . . . . Average Slot Usage (%) 92 | . 98 86 99 77 Engine 4 | . 14 11 . . Core 6 | . . . 10 8 Leg 21 | . 28 20 22 17 Device 14 | . 2 11 21 12 Storage 11 | . 14 11 11 8 Protection 2 | . 10 . . 4 Energy Gun 17 | . 12 14 21 15 Ballistic Gun 13 | . 15 18 11 8 Peak Build Rating 20 | 6 7 9 19 20 Average Rating 13 | 5 6 7 18 18 On Entrance 8 | . 6 7 8 19 Naked Turns 2 | . . . . 2 Heaviest Build 32 | 12 14 16 32 32 Greatest Support 20 | 20 20 20 20 20 Greatest Overweight (x) 3 | 3 . 1 1 1 Average Overweight (x) . | . . . . . Largest Inventory Capacity 8 | 8 8 8 8 8 Average Capacity 7 | 7 8 8 8 7 Most Carried 8 | 1 8 8 8 8 Average Carried 7 | . 7 7 7 7 Final Capacity 8 | 8 8 8 8 5 Final Carried 8 | 1 8 8 8 5 Class Distribution -------------------- 45% | Scavenger-Skirmisher 24% | Mutant 22% | Skirmisher 6% | Scavenger-Tank Dominant Class ---------------- Mutant | -10/Materials Skirmisher | -9/Materials Scavenger-Skirmisher | -9/Mines Scavenger-Skirmisher | -8/Materials Resources | -11 -10 -9 -9 -8 ----------- Run | Yrd Mat Mat Min Mat Matter Collected 753 | 208 183 204 129 29 Remotely . | . . . . . Salvage Created 532 | . 148 264 79 41 Parts 41 | . 22 15 3 1 Haulers Intercepted . | . . . . . Recyclers Shooed . | . . . . . Parts Field Recycled . | . . . . . Retrieved Matter . | . . . . . Parts Self-Destructed . | . . . . . Prevented . | . . . . . Kills | -11 -10 -9 -9 -8 ------- Run | Yrd Mat Mat Min Mat Combat Hostiles Destroyed 18 | . 7 6 4 1 Guns 18 | . 7 6 4 1 Classes Destroyed 6 | . 3 2 1 . Watcher 1 | . 1 . . . Swarmer 8 | . 6 . 2 . Grunt 6 | . 1 3 1 1 Brawler 1 | . . 1 . . Sentry 2 | . . 2 . . Demolisher 1 | . . . 1 . Best Kill Streak 4 | . 4 4 2 1 Combat Bots Only 4 | . 3 4 2 1 Max Kills in Single Turn 2 | . 2 1 1 1 Gunslinging 1 | . 1 . . . Exploded . | . . . . . Melee . | . . . . . Uniques/NPCs Destroyed . | . . . . . Combat | -11 -10 -9 -9 -8 -------- Run | Yrd Mat Mat Min Mat Hostile Shots Fired 167 | . 44 49 9 65 Missed 46 | . 16 15 3 12 Damage Taken 2032 | . 283 468 144 1137 Core 836 | . 76 170 25 565 Absorbed by Shields . | . . . . . Redirected to Shielding 2 | . 2 . . . Core Remaining (%) 73 | 100 69 . 51 . Volleys Fired 64 | . 27 19 8 10 Largest 3 | . 2 3 3 2 Hottest 145 | . 70 120 145 95 Shots Fired 142 | . 52 52 24 14 Gun 140 | . 52 50 24 14 Cannon . | . . . . . Launcher 2 | . . 2 . . Special . | . . . . . Kinetic 69 | . 27 22 10 10 Thermal 71 | . 25 28 14 4 Explosive 2 | . . 2 . . Electromagnetic . | . . . . . Robot Hit Streak 12 | . 7 12 6 9 Robot Miss Streak 11 | . 11 4 3 1 Penetration Max . | . . . . . Secondary Targets 2 | . 1 1 . . Max Gunslinging Chain 1 | . 1 1 . . Shots Hit Robots 84 | . 25 35 11 13 Core Hits 38 | . 14 14 7 3 Critical Kills . | . . . . . Critical Parts Destroyed . | . . . . . Critical Strikes 6 | . . 2 3 1 Burn 6 | . . 2 3 1 Melee Attacks . | . . . . . Impact . | . . . . . Slashing . | . . . . . Piercing . | . . . . . Sneak Attacks . | . . . . . Combat Hostiles . | . . . . . Follow-up Attacks . | . . . . . Damage Inflicted 1077 | . 324 468 131 154 Guns 989 | . 324 380 131 154 Cannons . | . . . . . Explosions 88 | . . 88 . . Melee . | . . . . . Ramming . | . . . . . Kinetic 412 | . 149 153 41 69 Thermal 577 | . 175 227 90 85 Explosive 88 | . . 88 . . Electromagnetic . | . . . . . Impact . | . . . . . Slashing . | . . . . . Piercing . | . . . . . Highest Corruption 3 | . 3 . . . Average Corruption 1 | . 1 . . . Corruption Purged . | . . . . . Corruption Blocked . | . . . . . Effects 5 | . 5 . . . Message Errors 1 | . 1 . . . Matter Fused 1 | . 1 . . . Energy Discharges 1 | . 1 . . . Data Loss (minor) 1 | . 1 . . . Weapon Failures 1 | . 1 . . . Overload Shots . | . . . . . Overflow Damage . | . . . . . Projectiles . | . . . . . Explosions . | . . . . . Melee . | . . . . . Knockbacks . | . . . . . Impact . | . . . . . Kinetic . | . . . . . Secondary . | . . . . . Self-Inflicted Damage . | . . . . . Shots . | . . . . . Rammed . | . . . . . Targets Rammed . | . . . . . Kicked . | . . . . . Crushed . | . . . . . Highest Temperature 456 | . 168 456 327 256 Average Temperature 125 | . 64 165 138 148 Received Heat Transfer 651 | . 48 204 12 387 Effects 12 | . . 3 6 3 Shutdowns 1 | . . 1 . . Energy Bleed 2 | . . 1 1 . Interference 8 | . . . 5 3 Matter Decay 1 | . . 1 . . Siege Activations . | . . . . . Robots Corrupted . | . . . . . Combat Hostiles . | . . . . . Parts Fried . | . . . . . Impact Corruptions . | . . . . . Robots Melted . | . . . . . Combat Hostiles . | . . . . . Parts Melted 5 | . . 3 2 . Heat Transferred 1998 | . 518 814 444 222 Parts Sabotaged . | . . . . . Parts Stolen . | . . . . . Parts Stripped . | . . . . . Power Chain Reactions . | . . . . . Alert | -11 -10 -9 -9 -8 ------- Run | Yrd Mat Mat Min Mat Peak Influence 188 | . 188 134 177 21 Initial 79 | . . 79 52 . Average 49 | . 76 95 39 4 Maximum Alert Level . | . . . . . Low Security (%) 100 | 100 100 100 100 100 Level 1 . | . . . . . Level 2 . | . . . . . Level 3 . | . . . . . Level 4 . | . . . . . Level 5 . | . . . . . High Security . | . . . . . Max Security . | . . . . . Squads Dispatched 10 | . 1 4 1 4 Investigation 3 | . . 2 1 . Extermination . | . . . . . Reinforcement 6 | . 1 2 . 3 Assault . | . . . . . Garrison 1 | . . . . 1 Intercept . | . . . . . Searches Triggered . | . . . . . Construction Impeded 1 | . . 1 . . Haulers Reinforced . | . . . . . Active Scanning Responses . | . . . . . Cargo Convoy Interrupts . | . . . . . Stealth | -11 -10 -9 -9 -8 --------- Run | Yrd Mat Mat Min Mat Distress Signals 5 | . 1 . 1 3 Communications Jammed . | . . . . . Distress Signals . | . . . . . Times Spotted 30 | . 10 7 5 8 Peak Tracking Total 7 | . 4 4 2 7 Tactical Retreats 1 | . . . 1 . Traps | -11 -10 -9 -9 -8 ------- Run | Yrd Mat Mat Min Mat Traps Triggered 4 | . 2 2 . . Indirectly . | . . . . . Trap Hack Attempts . | . . . . . Triggered . | . . . . . Disarmed . | . . . . . Reprogrammed . | . . . . . Reused . | . . . . . Traps Extracted . | . . . . . Installed . | . . . . . Triggered . | . . . . . Machines | -11 -10 -9 -9 -8 ---------- Run | Yrd Mat Mat Min Mat Machines Disabled . | . . . . . Max in Single Turn . | . . . . . Machines Repaired . | . . . . . Machines Dismantled . | . . . . . Machines Sabotaged . | . . . . . Overloaded Fab Kills . | . . . . . Hacking | -11 -10 -9 -9 -8 --------- Run | Yrd Mat Mat Min Mat Machines Accessed 5 | . 3 . 1 1 Terminals 3 | . 2 . . 1 Fabricators . | . . . . . Repair Stations . | . . . . . Recycling Units 1 | . 1 . . . Scanalyzers . | . . . . . Garrison Access . | . . . . . Total Hacks 11 | . 9 . 1 1 Successful 7 | . 5 . 1 1 Failed 4 | . 4 . . . Catastrophic . | . . . . . Database Lockouts . | . . . . . Manual . | . . . . . Terminals 6 | . 5 . . 1 Fabricators . | . . . . . Repair Stations . | . . . . . Recycling Units 4 | . 4 . . . Scanalyzers . | . . . . . Garrison Access . | . . . . . Terminal Hacks 5 | . 3 . 1 1 Record 1 | . 1 . . . Open Door 1 | . . . 1 . Terminal Index 1 | . 1 . . . Alert Level 1 | . 1 . . . Zone Layout 1 | . . . . 1 Fabricator Hacks . | . . . . . Repair Station Hacks . | . . . . . Recycling Unit Hacks 2 | . 2 . . . Process 1 | . 1 . . . Report Inventory 1 | . 1 . . . Scanalyzer . | . . . . . Garrison Access Hacks . | . . . . . Unauthorized Hacks . | . . . . . Terminals . | . . . . . Fabricators . | . . . . . Repair Stations . | . . . . . Recycling Units . | . . . . . Scanalyzers . | . . . . . Garrison Access . | . . . . . Data Cores Recovered . | . . . . . Used . | . . . . . Hacking Detections 3 | . 3 . . . Full Trace Events 2 | . 2 . . . Feedback Events 1 | . 1 . . . Corruption 1 | . 1 . . . Feedback Blocked . | . . . . . Robot Schematics Acquired . | . . . . . Robots Built . | . . . . . Authchips . | . . . . . Time . | . . . . . Total Robot Build Rating . | . . . . . Part Schematics Acquired . | . . . . . Parts Built . | . . . . . Authchips . | . . . . . Time . | . . . . . Total Part Build Rating . | . . . . . Parts Repaired . | . . . . . Time . | . . . . . Parts Recycled . | . . . . . Recycled Matter 15 | . 15 . . . Retrieved Matter . | . . . . . Retrieved Components . | . . . . . Parts Scanalyzed . | . . . . . Part Schematics Acquired . | . . . . . Parts Damaged . | . . . . . Bothacking | -11 -10 -9 -9 -8 ------------ Run | Yrd Mat Mat Min Mat Used RIF Installer . | . . . . . Robots Hacked . | . . . . . Non-combat . | . . . . . Combat . | . . . . . Robot Hacks Applied . | . . . . . Relay Couplers Released . | . . . . . Fabnet Peak Effective % . | . . . . . Robots Rewired . | . . . . . Allies Hacked . | . . . . . Hacks Repelled . | . . . . . Allies | -11 -10 -9 -9 -8 -------- Run | Yrd Mat Mat Min Mat Total Allies 3 | . . . 3 . Largest Group 3 | . . . 3 2 Highest-Rated Group 78 | . . . 78 47 Highest-Rated Ally 31 | . . . 31 31 Total Orders . | . . . . . Ally Attacks 4 | . . . . 4 Total Damage 85 | . . . . 85 Kills . | . . . . . Allies Corrupted . | . . . . . Allies Melted . | . . . . . Intel | -11 -10 -9 -9 -8 ------- Run | Yrd Mat Mat Min Mat Robot Analysis Total . | . . . . . Derelict Logs Recovered . | . . . . . Drone Launches . | . . . . . Drone Recoveries . | . . . . . Exploration | -11 -10 -9 -9 -8 ------------- Run | Yrd Mat Mat Min Mat Turns Passed 2620 | 180 393 590 1040 417 Spaces Moved 1263 | 143 242 172 511 195 Core 25 | 25 . . . . Treads . | . . . . . Legs 1238 | 118 242 172 511 195 Wheels . | . . . . . Hover . | . . . . . Flight . | . . . . . Fastest Speed 50 | 50 120 120 120 120 Average Speed 157 | 112 120 125 187 187 Slowest Speed 200 | 200 120 190 190 190 Overloaded Moves . | . . . . . Propulsion Burnouts . | . . . . . Robots Hopped . | . . . . . Cave-ins Triggered . | . . . . . Exploration Rate (%) 29 | 6 36 11 84 12 Regions Visited 4 Branch Regions 1 Pre-discovered Areas . | . . . . . Known Exits Taken . | . . . . . Unknown Exits Taken 4 | 1 1 1 1 . Scrap Searched 1 | . . . 1 . Spaces Dug . | . . . . . Terrain Destroyed 9 | . . 9 . . Melee . | . . . . . Projectile . | . . . . . AOE 9 | . . 9 . . Terrain Rammed . | . . . . . Walls Destroyed . | . . . . . Machines Disabled . | . . . . . Actions | -11 -10 -9 -9 -8 --------- Run | Yrd Mat Mat Min Mat Total 1774 | 158 297 508 577 234 Wait 387 | 7 7 308 43 22 Move 1259 | 142 241 171 510 195 Hop . | . . . . . Pick Up 18 | 1 12 1 2 2 Fast Attach 13 | 6 1 1 4 1 Attach 5 | . 1 3 1 . Detach 2 | . . 1 1 . Swap 12 | 2 3 3 3 1 Drop 14 | . 5 1 5 3 Fire 64 | . 27 19 8 10 Melee . | . . . . . Ram . | . . . . . Kick . | . . . . . Crush . | . . . . . Escape Stasis . | . . . . . Rewire . | . . . . . Trap . | . . . . . Miscellaneous . | . . . . . Route ------- -11/Scrapyard -10/Materials (discovered 2 exits: [*Mat] / [*Min]) -9/Materials -9/Mines -8/Materials History --------- Turn | Location | Event 26 | -11/Scrapyard | Discovered new exit (range 15) 181 | -11/Scrapyard | Entered Materials 307 | -10/Materials | Build established: Mutant 394 | -10/Materials | Discovered new exit (range 8) 541 | -10/Materials | Discovered new exit (range 11) 574 | -10/Materials | Entered another Materials area 574 | -9/Materials | Evolved 2 slots: Utility x1, Weapon x1 886 | -9/Materials | Build established: Skirmisher 1092 | -9/Materials | Discovered new exit (range 14) 1164 | -9/Materials | Entered Mines 1169 | -9/Mines | Assembled infested the area 1179 | -9/Mines | Met a Derelict shopkeep closing up shop 1585 | -9/Mines | Build established: Scavenger-Skirmisher 1837 | -9/Mines | Received a Mining Laser from a helpful Derelict 2177 | -9/Mines | Discovered new exit (range 9) 2204 | -9/Mines | Entered Materials 2204 | -8/Materials | Accompanied by 2 allies 2204 | -8/Materials | Evolved 2 slots: Power x1, Propulsion x1 2209 | -8/Materials | Led the pair of lost Derelicts to an unsafe place 2248 | -8/Materials | Garrison activated, responded to threat 2614 | -8/Materials | Core integrity fell below 50% 2618 | -8/Materials | Core integrity fell below 20% 2621 | -8/Materials | Destroyed by L-31 Rogue with Katana Last Messages --------------- 02580_ Beamcaster destroyed. 02583_ Overheating: System interference. 02583_ Sensor Array temporarily disabled. 02583_ Hvy. Hammer temporarily disabled. 02583_ Acquired 1 matter. 02592_ Overheating: System interference. 02592_ Lgt. Assault Rifle temporarily disabled. 02592_ Acquired 1 matter. 02598_ TX-4IA(z) destroyed. 02601_ Sensor Array destroyed. 02601_ Insulated Plating destroyed. 02601_ Aluminum Leg destroyed. 02603_ Electrolysis Chamber disabled. 02603_ Aluminum Leg destroyed. 02611_ Lgt. Assault Rifle severed. 02613_ Sml. Storage Unit destroyed. 02616_ Mic. Nuclear Core destroyed. 02619_ Hvy. Hammer severed. 02619_ ALERT: Hostile activity reported, dispatching reinforcements to area. Map ----- +----------------------------------------------------+ | ???????????????????????????????????????????? | | ???????????????????????????????????????????? | | ???????????????????????????????????????????? | | ##?????????????????????????????????????????? | | T#######???????????????????????????????????? | | ???????????????????????????????????? | | ########???????????????????????????????????? | | ######????????????????????#####????????????? | | #?????????????######## #????????????? | | #?????????????# # #????????????? | | ############### # #????????????? | | + / [ "" + #????????????? | | ############### T" # #????????????? | | #?????????????# "" # #????????????? | | #?????????????# # #????????????? | | #?????????????######## #????????????? | | +#######??????????????????# #????????????? | | #?# ??????????????????# #????????????? | | #?# """???????????######## #????????????? | | #?# """???????????# #????????????? | | ### """???????????# #????????????? | | # """???????????# #?#??????????? | | # """???????????# ########+#####??????? | | + ??# ??????# ! # g=== #??????? | | # """??# #[% #l*/ " #??????? | | # """??# + =%/l@* """ !!????????? | | ## """??# # #g[ "" !!????????? | | ## """??# ?# # ! #??????? | | ? ????????# ??# ####g#########??????? | | ??????????# ???# #???g#??????????????? | | ??????????#####????# #????#??????????????? | | ???????????????????# #???????????????????? | | ???????????????????# #???????????????????? | | ??????????????????? ???????????????????? | | ??????????????????? ???????????????????? | | ??????????????????? ???????????????????? | | ??????????????????######???????????????????? | | ???????????????????????????????????????????? | | ???????????????????????????????????????????? | | ???????????????????????????????????????????? | | ???????????????????????????????????????????? | | ???????????????????????????????????????????? | | ???????????????????????????????????????????? | | ???????????????????????????????????????????? | | ???????????????????????????????????????????? | | ???????????????????????????????????????????? | | ???????????????????????????????????????????? | | ???????????????????????????????????????????? | | ???????????????????????????????????????????? | | ???????????????????????????????????????????? | +----------------------------------------------------+ Best States ------------- Heat Dissipation 38 Energy Generation 15 Energy Capacity 250 Matter Stores 300 Matter Capacity 300 Sight Range 16 Robot Scan Range 14 Terrain Scan Density 10 Armor Coverage 150 Resistance: EM 15 Utility Shielding 33 Evasion (%) 55 Item Schematics ----------------- None Robot Schematics ------------------ None Fabricated ------------ Nothing Alien Tech Used ----------------- None Achievements -------------- None Challenges ------------ None Game ------ Seed HackingArcAnalyzer Manual? 0 Play Time 00:33:46 Cumulative 10.5 hours Start 2025.03.17 @ 16:05:12 End 2025.03.17 @ 18:13:02 Sessions 3 Manual Loads 0 Difficulty Rogue Special Mode None Game No. 5 Rogue 1 Adventurer 4 Explorer 0 Win Type - Total 0 Types 0/0/0/0/0/0/0/0/0 Lore% 2 Gallery% 8 Achievement% 10 Wizard Run 0 Options --------- Layout 0 ASCII 0 Keyboard 1 Movement Arrows Keybinds 0 Fullscreen 1 Font 24/Smallcaps Map View 76x50 Zoom Use 0% Tactical HUD 1 Map Filters NONE Filters NONE Steam 1 RUN: f721b4a0-771f-4a2f-b68b-63bb79aae6ed